[Event "Summer Chess Classic-A 2022"]
[Site "Saint Louis"]
[Date "2022.06.03"]
[Round "2.2"]
[White "Hakobyan, Aram"]
[Black "Sevian, Samuel"]
[Result "1/2-1/2"]
[ECO "E48"]
[WhiteElo "2615"]
[BlackElo "2703"]
[Annotator "TA"]
[PlyCount "116"]
[EventDate "2022.05.31"]
[EventType "tourn"]
[EventCountry "USA"]
[SourceTitle "playchess.com"]
[Source "ChessBase"]
[SourceQuality "1"]
[TimeControl "40/5400+30:1800+30"]

{[%evp 13,116,-9,0,0,0,0,0,0,7,6,26,27,40,48,44,45,48,46,79,85,75,44,51,37,64,68,71,8,45,42,43,44,43,49,41,39,32,29,36,34,30,34,34,39,45,20,16,9,19,11,20,0,1,0,0,0,0,0,0,0,-7,-25,-22,-34,-31,-38,-38,-40,-37,-53,-33,-31,-36,-37,0,0,-4,-75,-36,-36,-28,-43,-3,-2,-3,-4,0,0,0,0,0,0,0,0,0,0,0,0,0,0,0,0,0,0,0]} 1. d4 {[%emt 0:02:17] Besenthal,K} Nf6 {[%emt 0:00:20]} 2. c4 {[%emt 0:01:18]} e6 {[%emt 0:00:05]} 3. Nc3 {[%emt 0:00:06]} Bb4 {[%emt 0:00:09]} 4. e3 {[%emt 0:00:12]} O-O {[%emt 0:00:11]} 5. Bd3 {[%emt 0:01:01]} d5 {[%emt 0:00:14]} 6. cxd5 {[%emt 0:00:45]} exd5 {[%emt 0:00:07]} 7. Nge2 {[%emt 0:00:10]} b6 {[%emt 0:03:12]} 8. O-O {[%emt 0:00:41] E48: Nimzo-Indian: Rubinstein: 5 Bd3 d5 including 6 Ne2, but excluding 6 a3.} Re8 {[%emt 0:02:22] Prevents e4.} 9. Bd2 {[%emt 0:00:30]} Bf8 {[%emt 0:06:47]} 10. Nf4 {[%emt 0:00:27]} Bb7 {[%emt 0:02:46]} 11. Qf3 {[%emt 0:00:53] [#]} Bd6 $146 {[%emt 0:24:13]} ({Predecessor:} 11... a6 12. Rad1 Ra7 13. Bc2 c5 14. dxc5 bxc5 15. Qh3 g6 16. Nce2 Bc6 17. Bc3 Nbd7 {0-1 (37) Navara,D (2735)-Inarkiev,E (2686) Gjakova 2016 CBM 173 [Besenthal,K]}) 12. Rad1 {[%emt 0:02:35]} Bxf4 {[%emt 0:02:35]} 13. Qxf4 {[%emt 0:04:55]} Ba6 {[%emt 0:00:13]} 14. Bxa6 {[%emt 0:01:18]} Nxa6 {[%emt 0:00:03]} 15. f3 {[%emt 0:01:54]} c5 {[%emt 0:11:49]} 16. Be1 {[%emt 0:00:49]} h6 {[%emt 0:01:29]} 17. Bf2 {[%emt 0:07:38]} Nc7 {[%emt 0:00:38]} 18. Qf5 {[%emt 0:07:39]} Qc8 {[%emt 0:04:39]} 19. Qxc8 {[%emt 0:03:37] White is more active.} Raxc8 {[%emt 0:00:17]} 20. Bg3 {[%emt 0:02:28]} (20. dxc5 $16 bxc5 21. Rd2) 20... Rxe3 {[%emt 0:07:11]} 21. dxc5 {[%emt 0:01:56]} bxc5 {[%emt 0:00:16]} 22. Bf2 {[%emt 0:00:29]} Re5 {[%emt 0:01:07]} 23. Bxc5 {[%emt 0:01:41]} Nb5 {[%emt 0:00:13] [#] And now ...Nxc3 would win.} 24. Nxb5 {[%emt 0:04:04]} Rxc5 {[%emt 0:00:05]} 25. Nd4 {[%emt 0:00:07]} Re8 {[%emt 0:02:30]} 26. Rfe1 {[%emt 0:06:14]} Kf8 {[%emt 0:11:44]} 27. Kf2 {[%emt 0:01:49]} Rec8 {[%emt 0:00:22]} 28. Re2 {[%emt 0:02:08]} g6 {[%emt 0:00:28]} 29. g4 {[%emt 0:01:46]} a5 {[%emt 0:01:03]} 30. b3 {[%emt 0:07:43]} Ne8 {[%emt 0:02:21]} 31. Kg3 {[%emt 0:08:51]} Nc7 {[%emt 0:01:41]} 32. Re5 {[%emt 0:05:36]} Re8 {[%emt 0:00:40]} 33. Rxe8+ {[%emt 0:02:13]} Kxe8 $11 {[%emt 0:00:12][%mdl 4096] Endgame KRN-KRN} 34. Kf2 {[%emt 0:10:00]} Ne6 {[%emt 0:00:36]} 35. Ke3 {[%emt 0:00:10]} Ke7 {[%emt 0:00:54]} 36. Ne2 {[%emt 0:04:53]} Kd6 {[%emt 0:03:04]} 37. Kd3 {[%emt 0:04:23]} Rc8 {[%emt 0:02:44]} 38. Rd2 {[%emt 0:01:45]} Rh8 {[%emt 0:03:38]} 39. h4 {[%emt 0:01:39]} h5 {[%emt 0:00:09]} 40. g5 {[%emt 0:00:31]} Rb8 {[%emt 0:01:49]} 41. Ke3 {[%emt 0:02:53]} Re8 {[%emt 0:09:00]} 42. Kf2 {[%emt 0:00:59]} Rc8 {[%emt 0:00:10]} 43. f4 {[%emt 0:04:03]} a4 {[%emt 0:07:12]} 44. bxa4 {[%emt 0:01:08]} Rc4 {[%emt 0:02:43][%csl LRa4,LRf4]} 45. Kf3 {[%emt 0:04:02]} (45. Rd3 $11 {keeps the balance.}) 45... Ng7 {[%emt 0:02:43][%mdl 1024] Black has strong compensation.} ({Much weaker is} 45... Rxa4 {[#]} 46. Rxd5+ $1 Ke7 47. Rd2 $11) (45... Kc6 $5 {[%cal Rc4a4]}) 46. a5 {[%emt 0:04:25]} Nf5 {[%emt 0:00:11]} 47. a6 {[%emt 0:00:18]} Rc6 {[%emt 0:07:04]} 48. a7 {[%emt 0:02:22] The position is equal.} Ra6 {[%emt 0:00:11]} 49. Nc3 {[%emt 0:00:42]} Kc6 {[%emt 0:00:23]} (49... Nxh4+ {looks sharper.} 50. Kf2 Nf5 51. a4 Kc6) 50. Nxd5 {[%emt 0:01:14] Nb4+ is the strong threat.} Rxa7 {[%emt 0:00:09]} 51. Nb4+ {[%emt 0:04:59]} Kb5 {[%emt 0:00:04]} 52. Nd3 {[%emt 0:02:35]} Ra4 {[%emt 0:03:28]} 53. Rb2+ {[%emt 0:00:53]} Kc4 {[%emt 0:03:13]} 54. Ne5+ {[%emt 0:00:08]} Kd5 {[%emt 0:00:25]} 55. Rb5+ {[%emt 0:02:22]} Ke6 {[%emt 0:00:41] Hoping for ...Nd4+.} 56. Rb6+ {[%emt 0:00:16]} Kd5 {[%emt 0:00:03]} 57. Rb5+ {[%emt 0:00:42]} Ke6 {[%emt 0:01:14] aiming for ...Nd4+.} 58. Rb6+ {[%emt 0:00:07]} Kd5 {[%emt 0:00:02] Weighted Error Value: White=0.08 (flawless) /Black=0.06 (flawless)} 1/2-1/2

[Event "Summer Chess Classic-A 2022"]
[Site "Saint Louis"]
[Date "2022.06.03"]
[Round "2.3"]
[White "Bjerre, Jonas Buhl"]
[Black "Theodorou, Nikolas"]
[Result "1-0"]
[ECO "E94"]
[WhiteElo "2610"]
[BlackElo "2567"]
[Annotator "TA"]
[PlyCount "101"]
[EventDate "2022.05.31"]
[EventType "tourn"]
[EventCountry "USA"]
[SourceTitle "playchess.com"]
[Source "ChessBase"]
[SourceQuality "1"]
[TimeControl "40/5400+30:1800+30"]

{[%evp 12,101,35,41,39,43,40,36,39,32,42,35,39,39,85,75,120,124,114,114,130,131,137,20,19,0,0,0,0,0,0,0,0,0,10,35,34,0,0,0,0,0,0,0,0,0,0,0,45,45,40,58,39,39,54,54,122,115,130,154,417,449,873,879,839,808,902,854,881,887,856,715,620,728,566,470,1168,1083,1552,1552,1191,1185,1360,1161,29974,29974,29983,29984,29984,0,29984,29985]} 1. d4 {[%emt 0:00:08]} Nf6 {[%emt 0:00:17]} 2. c4 {[%emt 0:00:08]} g6 {[%emt 0:00:08]} 3. Nc3 {[%emt 0:00:08]} Bg7 {[%emt 0:00:06]} 4. e4 {[%emt 0:00:08]} d6 {[%emt 0:00:06]} 5. Nf3 {[%emt 0:00:06]} O-O {[%emt 0:00:11]} 6. Be2 {[%emt 0:00:51]} e5 {[%emt 0:00:22]} 7. O-O {[%emt 0:00:18]} h6 {[%emt 0:00:21] E94: King's Indian: Classical: 6 Be2 e5 7 0-0: Various Black 7th moves.} 8. dxe5 {[%emt 0:04:11]} dxe5 {[%emt 0:00:42]} 9. Be3 {[%emt 0:00:47]} Nc6 {[%emt 0:00:14] White is slightly better.} 10. h3 {[%emt 0:00:47] Against Bg4} Be6 {[%emt 0:04:28]} 11. Qc1 {[%emt 0:04:20] [#]} Nd4 $146 {[%emt 0:06:44]} ({Predecessor:} 11... Kh7 12. Rd1 Qc8 13. a3 Na5 14. Qc2 Bxc4 15. Nxe5 Bxe2 16. Nxe2 Qe6 17. Bd4 Nb3 {0-1 (32) Wiwatanadate,P (2043)-Royal,S (2121) Chess.com INT 2021}) 12. Rd1 {[%emt 0:08:07][%cal Rf3d4]} c5 {[%emt 0:23:15]} (12... Nxe2+ $14 13. Nxe2 Qe7) 13. Bxh6 $16 {[%emt 0:17:16]} Qa5 {[%emt 0:33:19][%cal Oa5c3]} 14. Bxg7 {[%emt 0:06:26]} Kxg7 {[%emt 0:00:08]} 15. Qg5 {[%emt 0:04:15]} Rae8 {[%emt 0:02:08]} 16. Nxe5 {[%emt 0:11:51]} (16. Qxe5 $2 Bxc4 $1 {[%mdl 512]} 17. Rxd4 Rxe5 18. Rxc4 Ree8 $19) 16... Bxh3 {[%emt 0:15:27]} 17. Bd3 {[%emt 0:09:25]} ({White must play} 17. gxh3 $16 Nh7 18. Qg2 $1 Rxe5 19. f4) 17... Rh8 {[%emt 0:03:55] Hoping for ...Rh5.} 18. Nxf7 {[%emt 0:11:34]} (18. gxh3 $2 Rxe5 $1 19. Qe3 Rg5+ $1 20. Kh1 Qc7 $1 $19) 18... Rh5 {[%emt 0:01:40]} (18... Bxg2 19. Kxg2 Kxf7 20. Rg1 $11 (20. e5 Rh2+ 21. Kf1 Rh1+ 22. Kg2 Rh2+ 23. Kf1 Rh1+ 24. Kg2 Rh2+ $11)) 19. Qg3 {[%emt 0:02:32][%cal Oe4e5]} Kxf7 {[%emt 0:01:22]} 20. e5 $1 {[%emt 0:00:08]} ({But not} 20. gxh3 $2 Rg5 $3 {[%mdl 512]} 21. Qxg5 Nf3+ 22. Kg2 Nxg5 $19) 20... Bf5 {[%emt 0:01:48]} 21. exf6 {[%emt 0:03:00] Really sharp!} Bxd3 {[%emt 0:02:46]} 22. Qxd3 {[%emt 0:03:11]} (22. Rxd3 $2 Qxc3 $3 {[%mdl 512]} 23. Qc7+ Kxf6 24. Qd6+ (24. bxc3 $2 {gets mated.} Ne2+ 25. Kf1 Rh1#) 24... Kg7 25. Qd7+ (25. bxc3 $2 Ne2+ 26. Kf1 Rh1#) 25... Kh6 26. Qxe8 Qxd3 $17) 22... Reh8 {[%emt 0:00:48][%csl Gh8][%cal Rh5h1]} 23. f4 {[%emt 0:02:09] And now Re1 would win.} Qb6 {[%emt 0:00:11]} 24. Nb5 {[%emt 0:04:31]} (24. Qe3 $5 {[%cal Re3e7]} Qxf6 25. Ne4 $14 (25. Qe4 $2 Rh1+ 26. Kf2 Qh4+ 27. Ke3 Qg3+ 28. Kd2 Re8 $19)) 24... Qxf6 {[%emt 0:01:20]} 25. Nxd4 {[%emt 0:00:05]} cxd4 {[%emt 0:00:04]} 26. Qf3 {[%emt 0:01:38]} Qb6 {[%emt 0:00:41]} 27. Qb3 {[%emt 0:02:36]} Qc7 {[%emt 0:00:48]} 28. Qf3 {[%emt 0:01:27]} Qb6 {[%emt 0:00:22] ( -> ...d3+)} 29. Kf2 {[%emt 0:01:15][%cal Bg1f2,Bf2g3,Bg3g4][%mdl 32]} Qxb2+ {[%emt 0:00:47]} 30. Kg3 {[%emt 0:00:02] Threatens to win with Rab1.} Qc3 {[%emt 0:00:29]} 31. Qxc3 {[%emt 0:01:40]} dxc3 $14 {[%emt 0:00:02][%mdl 4096] Endgame KRR-KRR} 32. Rac1 {[%emt 0:00:56]} Rc5 {[%emt 0:00:34]} 33. Rxc3 {[%emt 0:00:16] Strongly threatening Rd7+.} Rc7 {[%emt 0:00:48] Against Rd7+. White stays focused until the end.} ({Black should play} 33... g5 $14) 34. Kg4 $16 {[%emt 0:00:45]} Rh5 {[%emt 0:00:29]} 35. Rcd3 {[%emt 0:00:21] Black must now prevent Rd7+.} Rhc5 $2 {[%emt 0:00:36]} (35... Ra5 $16) 36. Rd7+ $18 {[%emt 0:00:27]} Ke8 {[%emt 0:00:15]} (36... Kf8 $142 37. g3 b6 38. Rxc7 Rxc7) 37. Rxc7 {[%emt 0:00:41]} Rxc7 {[%emt 0:00:01] KR-KR} 38. Rd6 {[%emt 0:00:27]} Kf7 {[%emt 0:01:14] [#]} 39. Kg5 $1 {[%emt 0:00:22]} Rc5+ {[%emt 0:00:26]} 40. Rd5 {[%emt 0:00:33]} Rc7 {[%emt 0:00:34]} 41. c5 {[%emt 0:04:32]} Kg7 {[%emt 0:04:40]} 42. g4 {[%emt 0:02:08][%cal Bg2g4,Bg4g5][%mdl 32]} Kh7 {[%emt 0:12:48]} 43. Kf6 {[%emt 0:05:08] aiming for g5.} b6 {[%emt 0:02:49]} (43... Rc6+ $142 44. Ke7 Kg7) 44. cxb6 {[%emt 0:03:39]} axb6 {[%emt 0:00:11]} 45. g5 {[%emt 0:06:51] White wants to mate with Re5.} Rc6+ {[%emt 0:04:21]} 46. Ke5 {[%emt 0:00:06]} Rc7 {[%emt 0:05:44]} 47. a4 {[%emt 0:02:47]} Ra7 {[%emt 0:02:51]} 48. Kf6 {[%emt 0:01:18]} Rxa4 {[%emt 0:00:37]} 49. Rd7+ {[%emt 0:00:36]} Kg8 {[%emt 0:00:31]} 50. Rd8+ {[%emt 0:00:08]} Kh7 {[%emt 0:00:04]} 51. f5 {[%emt 0:00:17] Weighted Error Value: White=0.19 (very precise) /Black=0.43} 1-0

[Event "Summer Chess Classic-A 2022"]
[Site "Saint Louis"]
[Date "2022.06.03"]
[Round "2.4"]
[White "Gledura, Benjamin"]
[Black "Smirin, Ilia"]
[Result "1-0"]
[ECO "D24"]
[WhiteElo "2644"]
[BlackElo "2599"]
[Annotator "TA"]
[PlyCount "68"]
[EventDate "2022.05.31"]
[EventType "tourn"]
[EventCountry "USA"]
[SourceTitle "playchess.com"]
[Source "ChessBase"]
[SourceQuality "1"]
[TimeControl "40/5400+30:1800+30"]

{[%evp 9,68,14,46,41,49,50,66,18,24,13,29,13,24,15,67,25,30,35,49,31,77,78,99,77,65,63,74,84,125,129,141,139,148,158,158,151,156,159,162,155,156,164,155,157,153,141,154,102,214,218,320,338,323,293,291,286,427,427,464,462,474]} 1. d4 {[%emt 0:00:03]} Nf6 {[%emt 0:06:28]} 2. c4 {[%emt 0:00:21]} e6 {[%emt 0:00:14]} 3. Nf3 {[%emt 0:01:16]} d5 {[%emt 0:00:17]} 4. Nc3 {[%emt 0:00:24]} dxc4 {[%emt 0:00:49]} 5. e4 {[%emt 0:00:52][%cal Be2e4,Be4e5][%mdl 32]} b5 {[%emt 0:00:28]} (5... Bb4 $5 {[%cal Rf6e4]}) 6. e5 {[%emt 0:00:59] D24: Queen's Gambit Accepted: 3 Nf3 Nf6 4 Nc3.} Nd5 {[%emt 0:00:20]} 7. Nxb5 {[%emt 0:00:14]} Nb6 {[%emt 0:00:37]} 8. a3 {[%emt 0:04:10]} (8. Nc3 $14) 8... Be7 {[%emt 0:04:29]} 9. Qc2 {[%emt 0:09:26]} Bb7 {[%emt 0:14:49]} 10. Be3 {[%emt 0:07:38]} Nc6 {[%emt 0:07:39]} 11. Rd1 {[%emt 0:10:54]} Qd7 {[%emt 0:11:18]} (11... O-O $11) 12. Nc3 {[%emt 0:03:10][%cal Od4d5] White is much more active. The black rooks are badly placed.} Na5 {[%emt 0:01:36]} 13. Be2 {[%emt 0:04:08]} O-O-O {[%emt 0:02:16]} 14. O-O {[%emt 0:01:17] [#]} (14. Ng5 $5 {[%cal Rg5f7]} Qe8 15. O-O $14) 14... Kb8 $146 {[%emt 0:06:06]} (14... Qc6 $1 $14) ({Predecessor:} 14... g5 15. Nd2 h5 16. b4 cxb3 17. Nxb3 Nxb3 18. Qxb3 Qc6 19. Bf3 Qc4 20. Bxb7+ Kxb7 {0-1 (54) Rustemov,A (2525)-Xiong,J (2686) Chess.com INT 2022}) 15. Nd2 $16 {[%emt 0:04:15]} f5 {[%emt 0:01:31]} 16. exf6 {[%emt 0:05:27]} gxf6 {[%emt 0:00:14]} 17. Bf3 {[%emt 0:00:16]} Bxf3 {[%emt 0:08:35]} 18. Nxf3 {[%emt 0:00:53]} Nd5 {[%emt 0:01:06]} 19. Rfe1 {[%emt 0:08:47][%cal Bf1e1,Be1e6,Be6f6,Bf6f5][%mdl 32]} Rdg8 {[%emt 0:09:32]} 20. Bd2 {[%emt 0:04:32]} Nb3 {[%emt 0:05:57]} 21. Qe4 {[%emt 0:01:49] Inhibits Rg4.} Bd6 {[%emt 0:02:13]} 22. Qxe6 {[%emt 0:11:03]} Qxe6 {[%emt 0:00:26]} (22... Qg7 $2 23. Bg5 (23. g3 Nb6 $18) 23... Nb6 24. Qxf6 $18) 23. Rxe6 {[%emt 0:00:02]} Nxd2 {[%emt 0:00:08]} 24. Rxd2 {[%emt 0:00:15]} ({And not} 24. Nxd2 Nf4 25. Re4 (25. Rxf6 Rxg2+ 26. Kh1 Rhg8 $17) 25... Rxg2+ 26. Kh1 Rxf2 27. Nxc4 f5 $11) 24... Nf4 {[%emt 0:00:19]} 25. Rxf6 {[%emt 0:00:10] g3 is the strong threat.} Rxg2+ {[%emt 0:00:35]} 26. Kf1 {[%emt 0:00:08] And now Ne5 would win.} Rg6 {[%emt 0:02:35]} 27. Rf5 {[%emt 0:03:28]} Re8 {[%emt 0:03:19]} 28. Nd1 {[%emt 0:03:16] Pair of Knights!} (28. Nb5 $142 Re4 29. Rc2) 28... Nd3 {[%emt 0:01:47]} (28... Rf8 $16 {is a better defense.} 29. Rxf8+ Bxf8) 29. Ne3 $18 {[%emt 0:03:08]} Bf4 {[%emt 0:00:28] [#]} (29... Rf8 {was called for.} 30. Rxf8+ Bxf8 31. Nxc4 Nf4) 30. Rxd3 $1 {[%emt 0:01:11][%mdl 512]} cxd3 {[%emt 0:00:06]} 31. Rxf4 {[%emt 0:00:07]} Rc6 {[%emt 0:00:39]} 32. Nd2 {[%emt 0:02:51]} Rg8 {[%emt 0:01:53]} (32... Rc1+ $142 33. Kg2 a6) 33. Ndc4 {[%emt 0:01:24]} Rh6 {[%emt 0:02:38]} 34. h4 {[%emt 0:00:16]} Rgg6 {[%emt 0:01:21] Weighted Error Value: White=0.09 (flawless) /Black=0.26 (precise)} 1-0

[Event "Summer Chess Classic-A 2022"]
[Site "Saint Louis"]
[Date "2022.06.03"]
[Round "2.5"]
[White "Oparin, Grigoriy"]
[Black "Yu, Yangyi"]
[Result "0-1"]
[ECO "D18"]
[WhiteElo "2685"]
[BlackElo "2710"]
[Annotator "TA"]
[PlyCount "74"]
[EventDate "2022.05.31"]
[EventType "tourn"]
[EventCountry "USA"]
[SourceTitle "playchess.com"]
[Source "ChessBase"]
[SourceQuality "1"]
[TimeControl "40/5400+30:1800+30"]

{[%evp 22,74,29,31,38,14,13,0,27,25,24,8,9,-7,21,0,0,0,20,0,0,0,0,-45,45,59,67,48,63,33,29,0,27,30,47,-28,-30,-212,-212,-300,-304,-533,-515,-918,-901,-924,-931,-931,-908,-1151,-1102,-2142,-1399,-1234,-1140]} 1. d4 {[%emt 0:00:04]} d5 {[%emt 0:00:17]} 2. c4 {[%emt 0:00:12]} c6 {[%emt 0:00:09]} 3. Nf3 {[%emt 0:00:21]} Nf6 {[%emt 0:00:09]} 4. Nc3 {[%emt 0:00:40]} dxc4 {[%emt 0:01:27]} 5. a4 {[%emt 0:00:55]} Bf5 {[%emt 0:02:28]} 6. e3 {[%emt 0:01:02]} e6 {[%emt 0:00:38]} 7. Bxc4 {[%emt 0:00:08]} Bb4 {[%emt 0:00:27]} 8. O-O {[%emt 0:00:31]} O-O {[%emt 0:01:17]} 9. Nh4 {[%emt 0:01:05]} Bg4 {[%emt 0:04:39]} 10. f3 {[%emt 0:02:00]} Bh5 {[%emt 0:00:16]} 11. g4 {[%emt 0:01:17]} Nd5 {[%emt 0:00:30]} 12. Ng2 {[%emt 0:01:03]} Bg6 {[%emt 0:00:11] D18: Slav Defence: 5 a4 Bf5 6 e3.} 13. Bd2 {[%emt 0:07:02]} (13. Na2 $5 {[%cal Rc4d5]} Bd6 14. e4 $14) 13... a5 {[%emt 0:18:35] [#]} 14. Bb3 $146 {[%emt 0:11:36]} ({Predecessor:} 14. Qe2 Nd7 15. e4 N5b6 16. Bb3 c5 17. d5 exd5 18. Nxd5 Nf6 19. Bg5 Nbxd5 20. Bxd5 {0-1 (58) Aradhya,G (2198)-Tsyhanchuk,S (2283) Chess.com INT 2021}) 14... Na6 {[%emt 0:05:58] The position is equal.} 15. e4 {[%emt 0:03:35]} Nb6 {[%emt 0:01:11]} 16. Be3 {[%emt 0:00:10]} c5 {[%emt 0:01:45]} 17. h4 {[%emt 0:14:37][%cal Bh2h4,Bh4h5][%mdl 32]} h6 {[%emt 0:07:43]} 18. Na2 {[%emt 0:14:01]} (18. h5 $5 {[%cal Rh5g6]} cxd4 19. Qxd4 (19. hxg6 dxe3 20. gxf7+ Kxf7 $17) (19. Bxd4 Bh7 $11) 19... Qxd4 20. Bxd4 $14) 18... c4 {[%emt 0:17:46]} 19. Bc2 {[%emt 0:00:46]} Be7 {[%emt 0:02:04]} 20. h5 {[%emt 0:03:36]} Bh7 {[%emt 0:00:08]} 21. Nc3 {[%emt 0:00:24]} Nb4 {[%emt 0:00:18]} 22. Rc1 {[%emt 0:05:28]} Nxc2 {[%emt 0:06:04]} (22... f5 $15) 23. Rxc2 $14 {[%emt 0:00:26]} Bb4 {[%emt 0:01:49]} 24. Nf4 {[%emt 0:10:22]} Qe7 {[%emt 0:03:51]} 25. d5 {[%emt 0:05:28]} Nd7 {[%emt 0:01:12]} 26. Nb5 {[%emt 0:02:37]} Rac8 {[%emt 0:01:19]} 27. d6 {[%emt 0:05:53]} Qf6 {[%emt 0:00:07]} 28. Qc1 {[%emt 0:03:03]} (28. Nh3 $14) 28... Ne5 $11 {[%emt 0:00:50]} 29. b3 $2 {[%emt 0:00:52] Now White is beyond hope.} (29. Qd1 $11) 29... Qh4 $19 {[%emt 0:03:30] [#] Strongly threatening ...Qg3+.} 30. Ng2 {[%emt 0:02:53]} (30. Rg2 $142 cxb3 31. Qd1) 30... Qh3 {[%emt 0:01:06]} 31. Qd1 {[%emt 0:00:19]} (31. d7 {was called for.} Rcd8 32. Nd4) 31... cxb3 {[%emt 0:02:17] Black is clearly winning.} 32. Rxc8 {[%emt 0:00:04]} (32. Rcf2 $142 Bxe4 33. fxe4 Nxg4 34. Nf4 Qg3+ 35. Rg2 Qxe3+ 36. Kh1) 32... Rxc8 {[%emt 0:00:04]} 33. Nd4 {[%emt 0:03:16]} b2 {[%emt 0:03:44][%cal Oe5g4] [#] And now ...Nxg4! would win.} 34. d7 {[%emt 0:01:06]} Nxd7 {[%emt 0:01:52] ...Bd6 is the strong threat.} 35. Nxe6 {[%emt 0:00:36]} Ne5 {[%emt 0:00:06]} 36. Nd4 {[%emt 0:00:31]} Rc1 {[%emt 0:02:56]} 37. Bxc1 {[%emt 0:00:14]} b1=Q {[%emt 0:00:06] Weighted Error Value: White=0.80/Black=0.26 (precise)} 0-1